fUSD/lending_fUSD_20240617
["ID","MTS","AMOUNT","RATE_DAILY","PERIOD"]
[329726003,1718619048202,-151.0,0.0002644,7]
[329726006,1718619048224,-151.0,0.0002644,7]
[329726009,1718619048238,-151.0,0.0002644,7]
[329726011,1718619048249,-225.248654,0.0002644,7]
[329726015,1718619048273,-225.248654,0.0002644,7]
[329726018,1718619048310,-283.506165,0.0002644,7]
[329726020,1718619048324,-283.506165,0.0002644,7]
[329726023,1718619048341,-155.703486,0.0002644,7]
[329726027,1718619048368,-151.0,0.0002644,7]
[329726029,1718619048385,-151.0,0.0002644,7]
[329726033,1718619048420,-151.0,0.0002644,7]
[329726036,1718619048443,-257.080737,0.0002644,7]
[329726039,1718619048463,-257.080737,0.0002644,7]
[329726043,1718619048505,-151.0,0.0002644,7]
[329726045,1718619048525,-151.0,0.0002644,7]
[329726047,1718619048541,-151.0,0.0002644,7]
[329726051,1718619048576,-151.0,0.0002644,7]
[329726054,1718619048588,-208.913143,0.0002644,7]
[329726057,1718619048600,-208.913143,0.0002644,7]
[329726061,1718619048620,-155.366589,0.0002644,7]
[329726065,1718619048654,-151.0,0.0002644,7]
[329726067,1718619048673,-417.449283,0.0002644,7]
[329726069,1718619048688,-417.449283,0.0002644,7]
[329726072,1718619048700,-429.402711,0.0002644,7]
[329726074,1718619048725,-429.402711,0.0002644,7]
[329726076,1718619048738,-151.0,0.0002644,7]
[329726077,1718619048757,-151.0,0.0002644,7]
[329726079,1718619048774,-151.0,0.0002644,7]
[329726081,1718619048792,-547.570325,0.0002644,7]
[329726083,1718619048816,-547.570325,0.0002644,7]
[329726086,1718619048877,-151.0,0.0002644,7]
[329726089,1718619048904,-151.0,0.0002644,7]
[329726091,1718619048922,-151.0,0.0002644,3]
[329726094,1718619048947,-2897.741914,0.0002644,7]
[329726095,1718619048960,-199.687292,0.0002644,7]
[329726098,1718619048976,-2897.741914,0.0002644,7]
[329726100,1718619048990,-199.687292,0.0002644,7]
[329726103,1718619049016,-151.0,0.0002644,7]
[329726105,1718619049028,-172.340601,0.0002644,7]
[329726107,1718619049045,-206.83458,0.0002644,7]
[329726110,1718619049079,-151.0,0.0002644,7]
[329726112,1718619049097,-178.353948,0.0002644,7]
[329726115,1718619049146,-204.57462623,0.00026455,2]
[329726119,1718619049211,-484.33,0.00026468,2]
[329726120,1718619049228,-500.0,0.000265,9]
[329726122,1718619049271,-167.36514646,0.00026512,2]
[329726125,1718619049362,-2195.21219846,0.00026542,2]
[329726129,1718619049412,-1002.97,0.0002657,30]
[329726132,1718619049440,-151.0,0.00026575,7]
[329726133,1718619049467,-351.45451565,0.00026585,2]
[329726136,1718619049498,-300.0,0.00026594,2]
[329726138,1718619049527,-48106.95746028,0.00026595,2]
[329726140,1718619049538,-500.0,0.000266,9]
[329726142,1718619049557,-152.21839194,0.00026615,2]
[329726144,1718619049580,-152.99643742,0.00026621,2]
[329726147,1718619049602,-159.93934288,0.00026654,2]
[329726149,1718619049618,-152.99643742,0.00026688,2]
[329726151,1718619049631,-500.0,0.000267,9]
[329726153,1718619049645,-154.27538672,0.0002673,2]
[329726154,1718619049676,-204.57462623,0.00026745,2]
[329726156,1718619049688,-2195.21219846,0.00026761,2]
[329726158,1718619049709,-155.88100364,0.00026772,2]
[329726160,1718619049724,-500.0,0.00026783,2]
[329726161,1718619049736,-200.0,0.00026783,2]
[329726163,1718619049748,-200.0,0.00026784,15]
[329726164,1718619049773,-500.0,0.00026784,2]
[329726165,1718619049787,-500.0,0.00026784,2]
[329726166,1718619049802,-200.0,0.00026784,2]
[329726167,1718619049815,-351.45451565,0.00026792,2]
[329726168,1718619049829,-1175.0,0.000268,9]
[329726169,1718619049840,-255.93266489,0.00026804,2]
[329726170,1718619049854,-152.21839194,0.00026825,2]
[329726171,1718619049866,-856.4815784,0.00026833,2]
[329726173,1718619049878,-856.23790605,0.00026847,2]
[329726175,1718619049896,-220.63647472,0.00026889,2]
[329726177,1718619049910,-1000.0,0.000269,2]
[329726178,1718619049922,-294.61446051,0.000269,2]
[329726180,1718619049942,-10000.0,0.000269,2]
[329726182,1718619049954,-957.15732587,0.00026923,2]
[329726184,1718619049966,-957.15732587,0.00026967,2]
[329726186,1718619049978,-2195.21219846,0.00026981,2]
[329726188,1718619049991,-152.99643742,0.00026985,2]
[329726190,1718619050006,-151.0,0.00026989,7]
[329726192,1718619050018,-151.0,0.00026994,7]
[329726194,1718619050032,-299.759648,0.00026994,7]
[329726196,1718619050047,-290.669504,0.00026994,7]
[329726198,1718619050078,-257.080737,0.00026994,7]
[329726199,1718619050089,-257.080737,0.00026994,7]
[329726201,1718619050103,-151.0,0.00026994,7]
[329726204,1718619050115,-417.449283,0.00026997,7]
[329726206,1718619050135,-417.449283,0.00026997,7]
[329726208,1718619050151,-429.402711,0.00026997,7]
[329726210,1718619050165,-429.402711,0.00026997,7]
[329726212,1718619050184,-151.0,0.00026997,7]
[329726214,1718619050208,-151.0,0.00026997,7]
[329726215,1718619050223,-151.0,0.00026997,7]
[329726217,1718619050238,-547.570325,0.00026997,7]
[329726219,1718619050263,-547.570325,0.00026997,7]
[329726221,1718619050310,-151.0,0.00026997,7]
[329726223,1718619050324,-151.0,0.00026997,7]
[329726225,1718619050337,-151.0,0.00026997,3]
[329726227,1718619050349,-2897.741914,0.00026997,7]
[329726229,1718619050381,-199.687292,0.00026997,7]
[329726232,1718619050466,-2897.741914,0.00026997,7]
[329726235,1718619050502,-199.687292,0.00026997,7]
[329726237,1718619050520,-151.0,0.00026997,7]
[329726240,1718619050568,-151.0,0.00026997,7]
[329726242,1718619050583,-3227.3834694,0.00026998,2]
[329726244,1718619050613,-2808.1636232,0.00026998,2]
[329726250,1718619050716,-289884.85034428,0.00027,3]
[329726272,1718619051163,-1974.29676001,0.00027,3]
[329726299,1718619051694,-1649.97487269,0.00027,3]
[329726301,1718619051709,-774.9999974,0.00027,3]
[329726303,1718619051732,-2605.7965384,0.00027,3]
[329726305,1718619051754,-3377.68586456,0.00027,3]
[329726307,1718619051774,-41696.13201306,0.00027,3]
[329726324,1718619052196,-184.91240217,0.00013998,2]
[329726327,1718619052228,-342.572603,0.0002644,7]
[329726329,1718619052270,-12.90499483,0.00026997,7]
[329726332,1718619052289,-329.66760817,0.00026997,7]
[329726334,1718619052307,-670.55861038,0.00027,3]
[329726336,1718619052333,-1319.91421741,0.00027,3]
[329726338,1718619052354,-1254.17154143,0.00027,3]
[329726340,1718619052372,-348.40375138,0.00027,3]
[329726342,1718619052399,-2880.2561064,0.00027,3]
[329726344,1718619052414,-324428.47391782,0.00027,3]
[329726346,1718619052427,-177.83858196,0.00027,4]
[329726348,1718619052442,-1500.0,0.00027,6]
[329726350,1718619052470,-911.56416294,0.00027,6]
[329726351,1718619052482,-132052.65985319,0.00027,30]
[329726353,1718619052498,-4023.53956396,0.00027,2]
[329726394,1718619053414,-355.91043604,0.00027,2]
[329726395,1718619053427,-151.0,0.00027,7]
[329726396,1718619053454,-106.32683388,0.00027,7]
[329726398,1718619053494,-44.67316612,0.00027,7]
[329726400,1718619053537,-151.0,0.00027,7]
[329726402,1718619053552,-151.0,0.00027,7]
[329726404,1718619053589,-151.0,0.00027,7]
[329726407,1718619053616,-238.94501269,0.00027,7]
[329726408,1718619053645,-33.05498731,0.00027,7]
[329726410,1718619053660,-151.0,0.00027,7]
[329726412,1718619053675,-151.0,0.00027,7]
[329726414,1718619053696,-225.248654,0.00027,7]
[329726417,1718619053737,-225.248654,0.00027,7]
[329726419,1718619053761,-225.248654,0.00027,7]
[329726421,1718619053783,-283.506165,0.00027,7]
[329726423,1718619053804,-225.248654,0.00027,7]
[329726424,1718619053824,-283.506165,0.00027,7]
[329726425,1718619053852,-91.01255666,0.00027,7]
[329726426,1718619053870,-192.49360834,0.00027,7]
[329726427,1718619053897,-283.506165,0.00027,7]
[329726428,1718619053982,-151.0,0.00027,7]
[329726429,1718619054004,-151.0,0.00027,7]
[329726430,1718619054060,-257.080737,0.00027,7]
[329726432,1718619054086,-257.080737,0.00027,7]
[329726433,1718619054100,-257.080737,0.00027,7]
[329726434,1718619054118,-257.080737,0.00027,7]
[329726435,1718619054137,-151.0,0.00027,7]
[329726436,1718619054151,-151.0,0.00027,7]
[329726437,1718619054205,-151.0,0.00027,7]
[329726438,1718619054250,-161.590296,0.00027,7]
[329726439,1718619054290,-151.0,0.00027,7]
[329726440,1718619054344,-174.041431,0.00027,7]
[329726441,1718619054358,-263.904332,0.00027,7]
[329726442,1718619054382,-2381.016937,0.00027,2]
[329726443,1718619054408,-208.913143,0.00027,7]
[329726444,1718619054450,-208.913143,0.00027,7]
[329726445,1718619054479,-208.913143,0.00027,7]
[329726446,1718619054505,-208.913143,0.00027,7]
[329726447,1718619054537,-151.0,0.00027,7]
[329726448,1718619054573,-151.0,0.00027,7]
[329726449,1718619054585,-60.87171067,0.00027,7]
[329726450,1718619054611,-356.57757233,0.00027,7]
[329726451,1718619054626,-417.449283,0.00027,7]
[329726452,1718619054648,-417.449283,0.00027,7]
[329726453,1718619054668,-417.449283,0.00027,7]
[329726454,1718619054720,-429.402711,0.00027,7]
[329726455,1718619054735,-429.402711,0.00027,7]
[329726456,1718619054760,-429.402711,0.00027,7]
[329726457,1718619054777,-108.33144657,0.00027,7]
[329726458,1718619054791,-266.88247612,0.00027,7]
[329726459,1718619055996,-824.4381774,0.00013998,2]
[329726460,1718619056012,-1064.64774675,0.00014999,2]
[329726461,1718619056031,-4838.90982786,0.00014999,2]
[329726462,1718619056053,-54.18878831,0.00027,7]
[329726463,1718619056072,-151.0,0.00027,7]
[329726464,1718619056085,-151.0,0.00027,7]
[329726465,1718619056097,-151.0,0.00027,7]
[329726466,1718619056108,-151.0,0.00027,7]
[329726467,1718619056123,-151.0,0.00027,7]
[329726468,1718619056149,-151.0,0.00027,7]
[329726469,1718619056164,-160.0,0.00027,2]
[329726470,1718619056178,-547.570325,0.00027,7]
[329726471,1718619056193,-547.570325,0.00027,7]
[329726472,1718619056214,-547.570325,0.00027,7]
[329726473,1718619056248,-547.570325,0.00027,7]
[329726474,1718619056268,-151.0,0.00027,7]
[329726475,1718619056293,-151.0,0.00027,7]
[329726476,1718619056354,-151.0,0.00027,7]
[329726477,1718619056410,-151.0,0.00027,7]
[329726478,1718619056488,-151.0,0.00027,3]
[329726479,1718619056530,-151.0,0.00027,3]
[329726480,1718619056548,-150.0,0.00027,5]
[329726481,1718619056567,-2897.741914,0.00027,7]
[329726482,1718619056585,-2897.741914,0.00027,7]
[329726483,1718619056603,-199.687292,0.00027,7]
[329726484,1718619056618,-199.687292,0.00027,7]
[329726485,1718619056651,-2897.741914,0.00027,7]
[329726486,1718619056671,-2897.741914,0.00027,7]
[329726487,1718619056689,-199.687292,0.00027,7]
[329726488,1718619056706,-199.687292,0.00027,7]
[329726489,1718619056726,-245.160488,0.00027,7]
[329726490,1718619056745,-221.69,0.00027,2]
[329726491,1718619056758,-221.69,0.00027,2]
[329726492,1718619056771,-221.69,0.00027,2]
[329726493,1718619056782,-221.69,0.00027,2]
[329726494,1718619056804,-221.69,0.00027,2]
[329726495,1718619056842,-221.69,0.00027,2]
[329726496,1718619056859,-221.69,0.00027,2]
[329726497,1718619056876,-221.69,0.00027,2]
[329726498,1718619056887,-221.69,0.00027,2]
[329726499,1718619056899,-221.69,0.00027,2]
[329726500,1718619056926,-221.69,0.00027,2]
[329726501,1718619056950,-221.69,0.00027,2]
[329726502,1718619056974,-221.69,0.00027,2]
[329726503,1718619056986,-221.69,0.00027,2]
[329726504,1718619056997,-221.69,0.00027,2]
[329726505,1718619057012,-221.69,0.00027,2]
[329726506,1718619057037,-221.69,0.00027,2]
[329726507,1718619057053,-221.69,0.00027,2]
[329726508,1718619057084,-221.69,0.00027,2]
[329726509,1718619057102,-221.69,0.00027,2]
[329726510,1718619057121,-151.0,0.00027,7]
[329726511,1718619057172,-221.69,0.00027,2]
[329726512,1718619057198,-221.69,0.00027,2]
[329726513,1718619057221,-221.69,0.00027,2]
[329726514,1718619057236,-221.69,0.00027,2]
[329726515,1718619057248,-221.69,0.00027,2]
[329726516,1718619057258,-221.69,0.00027,2]
[329726517,1718619057270,-221.69,0.00027,2]
[329726518,1718619057284,-221.69,0.00027,2]
[329726519,1718619057294,-221.69,0.00027,2]
[329726520,1718619057310,-151.0,0.00027,7]
[329726521,1718619057335,-221.69,0.00027,2]
[329726522,1718619057346,-221.69,0.00027,2]
[329726523,1718619057359,-221.69,0.00027,2]
[329726524,1718619057370,-221.69,0.00027,2]
[329726525,1718619057382,-221.69,0.00027,2]
[329726526,1718619057393,-221.69,0.00027,2]
[329726527,1718619057412,-221.69,0.00027,2]
[329726528,1718619057424,-221.69,0.00027,2]
[329726529,1718619057453,-221.69,0.00027,2]
[329726530,1718619057480,-342.572603,0.00027,7]
[329726531,1718619057531,-342.572603,0.00027,7]
[329726532,1718619057550,-1335.4795405,0.00027003,2]
[329726533,1718619057568,-226.59991401,0.00027003,2]
[329726534,1718619057587,-220.63647472,0.00027021,2]
[329726535,1718619057618,-152.99643742,0.00027047,2]
[329726536,1718619057645,-957.15732587,0.0002706,2]
[329726537,1718619057663,-158.42682675,0.00027075,2]
[329726538,1718619057674,-152.82567657,0.00027078,2]
[329726539,1718619057685,-856.4815784,0.00027082,2]
[329726540,1718619057704,-160.98791585,0.000271,2]
[329726541,1718619057718,-500.0,0.00027123,8]
[329726542,1718619057772,-500.0,0.00027123,8]
[329726543,1718619057792,-500.0,0.00027123,8]
[329726544,1718619057809,-500.0,0.00027123,8]
[329726545,1718619057822,-500.0,0.00027123,8]
[329726546,1718619057860,-500.0,0.00027123,8]
[329726547,1718619057872,-219.16100964,0.00027123,8]
[329726548,1718619061673,-342.572603,0.0002644,7]
[329726549,1718619061685,-342.572603,0.00026997,7]
[329726550,1718619061710,-342.572603,0.00027,7]
[329726551,1718619061727,-342.572603,0.00027,7]
[329726552,1718619061756,-280.83899036,0.00027123,8]
[329726553,1718619061797,-500.0,0.00027123,8]
[329726554,1718619061808,-500.0,0.00027123,8]
[329726555,1718619061836,-167.84742117,0.00027139,2]
[329726556,1718619061849,-269.46402468,0.00027142,2]
[329726557,1718619061867,-81.99049097,0.00027142,2]
[329726558,1718619061888,-983.56565149,0.0002715,2]
[329726559,1718619061902,-343.39604992,0.0002715,2]
[329726560,1718619062099,-209.23301289,0.00024383,2]
[329726561,1718619062112,-46.80607605,0.00024383,2]
[329726562,1718619067018,150.0,9.404e-05,2]
[329726563,1718619067512,35.06430065,9.404e-05,2]
[329726564,1718619137417,150.0,9.404e-05,2]
[329726565,1718619137577,150.0,9.404e-05,2]
[329726566,1718619137748,150.0,9.404e-05,2]
[329726567,1718619137794,150.0,9.404e-05,2]
[329726568,1718619137894,150.0,9.404e-05,2]
[329726569,1718619137937,150.0,9.404e-05,2]
[329726570,1718619137977,150.0,9.404e-05,2]
[329726571,1718619138009,150.0,9.404e-05,2]
[329726572,1718619138050,150.0,9.404e-05,2]
[329726573,1718619138101,150.0,9.404e-05,2]
[329726574,1718619138133,150.0,9.404e-05,2]
[329726575,1718619138169,150.0,9.404e-05,2]
[329726576,1718619138219,150.0,9.404e-05,2]
[329726577,1718619138253,150.0,9.404e-05,2]
[329726578,1718619138317,150.0,9.404e-05,2]
[329726579,1718619138347,150.0,9.404e-05,2]
[329726580,1718619138386,150.0,9.404e-05,2]
[329726581,1718619138413,150.0,9.404e-05,2]
[329726582,1718619138462,150.0,9.404e-05,2]
[329726583,1718619138519,150.0,9.404e-05,2]
[329726584,1718619138556,150.0,9.404e-05,2]
[329726585,1718619138609,4393.83477601,9.404e-05,2]
[329726586,1718619151030,150.0,9.404e-05,2]
[329726587,1718619151092,150.0,9.404e-05,2]
[329726588,1718619151154,150.0,9.404e-05,2]
[329726589,1718619151509,150.0,9.404e-05,2]
[329726590,1718619151719,150.0,9.404e-05,2]
[329726591,1718619151759,150.0,9.404e-05,2]
[329726592,1718619151790,150.0,9.404e-05,2]
[329726593,1718619151817,150.0,9.404e-05,2]
[329726594,1718619151843,150.0,9.404e-05,2]
[329726595,1718619151881,150.0,9.404e-05,2]
[329726596,1718619151917,150.0,9.404e-05,2]
[329726597,1718619152143,150.0,9.404e-05,2]
[329726598,1718619152286,150.0,9.404e-05,2]
[329726599,1718619152357,150.0,9.404e-05,2]
[329726600,1718619152409,150.0,9.404e-05,2]
[329726601,1718619152620,150.0,9.404e-05,2]
[329726602,1718619152661,150.0,9.404e-05,2]
[329726603,1718619152706,150.0,9.404e-05,2]
[329726604,1718619152820,150.0,9.404e-05,2]
[329726605,1718619152849,150.0,9.404e-05,2]
[329726606,1718619152890,150.0,9.404e-05,2]
[329726607,1718619152933,1365.1963815,9.404e-05,2]
[329726608,1718619157210,150.0,9.404e-05,2]
[329726609,1718619157270,150.0,9.404e-05,2]
[329726610,1718619157322,150.0,9.404e-05,2]
[329726611,1718619157408,150.0,9.404e-05,2]
[329726612,1718619157455,239.38965532,9.404e-05,2]
[329726613,1718619157517,396.68707541,9.404e-05,2]
[329726614,1718619173032,150.0,7.053e-05,2]
[329726615,1718619173072,150.0,7.053e-05,2]
[329726616,1718619173101,150.0,7.053e-05,2]
[329726617,1718619173354,103.35504439,7.053e-05,2]
[329726618,1718619174888,3349.66585944,9.404e-05,2]
[329726620,1718619713431,150.0,9.404e-05,2]
[329726621,1718619713627,150.0,9.404e-05,2]
[329726622,1718619714155,150.0,9.404e-05,2]
[329726623,1718619714221,30.19936411,9.404e-05,2]
[329726624,1718619715791,150.0,9.404e-05,2]
[329726625,1718619715844,140.10514488,9.404e-05,2]
[329726627,1718619837234,150.0,9.357e-05,2]
[329726628,1718619837702,50.0,9.357e-05,2]
[329726629,1718619910464,835.8,0.00024007,30]
[329726639,1718620234113,-784.2794531,9.848e-05,2]
[329726640,1718620234130,-284.60656003,9.848e-05,2]
[329726642,1718620234145,-38.30518236,9.849e-05,2]
[329726643,1718620234167,-490.54460997,9.849e-05,2]
[329726644,1718620235242,-205.01060424,9.849e-05,2]
[329726645,1718620235254,-122.76439576,9.849e-05,2]
[329726646,1718620235270,-522.3297664,9.849e-05,2]
[329726647,1718620235294,-638.98845715,9.849e-05,2]
[329726648,1718620235331,-1373.27,9.849e-05,2]
[329726649,1718620235349,-454.28974015,9.849e-05,2]
[329726650,1718620235379,-294.87759736,9.899e-05,2]
[329726651,1718620235397,-1256.40621732,9.9e-05,2]
[329726652,1718620235436,-776.61022031,9.9e-05,2]
[329726653,1718620235455,-854.56698981,9.9e-05,2]
[329726654,1718620235472,-150.0,9.999e-05,2]
[329726655,1718620235489,-299.97320991,0.0001,2]
[329726656,1718620235512,-41.37980028,0.0001,2]
[329726657,1718620235560,-4527.47196708,0.0001,2]
[329726658,1718620235838,-193.12553264,0.0001,2]
[329726659,1718620235850,-745.08726221,0.00010121,2]
[329726660,1718620236221,-451.92492773,0.00010121,2]
[329726661,1718620236245,-624.91528117,0.00010121,2]
[329726682,1718620243638,-3482.89006,9.798e-05,2]
[329726683,1718620243648,-675.27332889,0.00010121,2]
[329726684,1718620243660,-1262.17951674,0.00012532,2]
[329726685,1718620243684,-205.15170629,0.00012537,2]
[329726686,1718620243696,-13216.64072735,0.00012538,2]
[329726687,1718620243713,-410.80888804,0.00012539,2]
[329726688,1718620243731,-238.12068345,0.00012539,2]
[329726689,1718620243745,-155.09390087,0.00012539,2]
[329726690,1718620243776,-834.17,0.00012539,2]
[329726691,1718620243791,-1220.67,0.00012539,2]
[329726692,1718620243819,-539.21532723,0.00014998,2]
[329726693,1718620243846,-608.38,0.00014998,2]
[329726694,1718620243857,-5359.66,0.00014998,2]
[329726695,1718620243868,-1806.68,0.00014998,2]
[329726696,1718620243880,-459.07,0.00014998,2]
[329726697,1718620243892,-171.92,0.00019037,2]
[329726698,1718620243903,-156.04,0.00019084,2]
[329726699,1718620243915,-150.99,0.00019726,2]
[329726700,1718620243925,-177.56,0.00021792,2]
[329726701,1718620243942,-290.59,0.0002304,2]
[329726702,1718620243956,-499.99,0.00023155,2]
[329726703,1718620243971,-1913.89,0.00023583,2]
[329726704,1718620243982,-250.0,0.00023619,2]
[329726705,1718620244007,-200.0,0.00023803,2]
[329726706,1718620244018,-165.38,0.00023932,2]
[329726707,1718620244067,-1222.56,0.00024,2]
[329726708,1718620244085,-1159.38,0.00024005,2]
[329726709,1718620244104,-200.0,0.00024007,2]
[329726710,1718620244116,-250.80314776,0.00024007,2]
[329726711,1718620244128,-57800.78983521,0.00024007,2]
[329726712,1718620244140,-2751.0,0.00024021,2]
[329726713,1718620244152,-2059.87583728,0.000241,2]
[329726714,1718620244162,-595.76,0.0002416,2]
[329726715,1718620244181,-177.97,0.00024384,2]
[329726716,1718620244192,-496.1,0.00024388,2]
[329726717,1718620244213,-250.0,0.00024532,2]
[329726718,1718620244225,-150.0,0.00024532,2]
[329726719,1718620244236,-200.0,0.00024568,2]
[329726720,1718620244247,-823.585,0.00024874,2]
[329726721,1718620244258,-1567.869,0.00024874,2]
[329726722,1718620244269,-250.0,0.00024896,2]
[329726723,1718620244280,-3458.91293718,0.000249,2]
[329726726,1718620245418,-2485.6843325,0.000249,2]
[329726973,1718620250473,-862.49803766,0.000249,2]
[329726975,1718620250486,-560.00196234,0.00025,2]
[329726999,1718620250942,-273.76520542,0.00025,2]
[329727001,1718620250957,-707.49477052,0.00025108,2]
[329727003,1718620250969,-19.92901731,0.00025304,2]
[329727004,1718620250985,-270.66098269,0.00025304,2]
[329727006,1718620251005,-289.6361687,0.00025328,2]
[329727009,1718620251027,-210.3638313,0.00025328,2]
[329727011,1718620251048,-1201.86569835,0.00025392,2]
[329727013,1718620251065,-1422.62284,0.00025392,2]
[329727015,1718620251090,-18373.00146165,0.00025392,2]
[329727017,1718620251106,-241.63,0.0002559,2]
[329727019,1718620251119,-229.56,0.00025723,2]
[329727021,1718620251130,-932.19772724,0.00025933,2]
[329727022,1718620251145,-369.56846571,0.00026,2]
[329727025,1718620251164,-513.28850771,0.00026206,2]
[329727027,1718620251194,-151.0,0.00026208,5]
[329727029,1718620251244,-193.308666,0.00026302,2]
[329727030,1718620251265,-159.701651,0.00026302,2]
[329727031,1718620251278,-150.0,0.00026422,2]
[329727033,1718620251296,-159.93934288,0.0002643,2]
[329727034,1718620251312,-700.02683271,0.00026477,2]
[329727036,1718620251332,-430.28003105,0.00026511,2]
[329727038,1718620251347,-167.36514646,0.00026553,2]
[329727039,1718620251362,-180.37139182,0.00026561,2]
[329727040,1718620251383,-167.44023113,0.00026571,2]
[329727042,1718620251409,-257.52354434,0.00026581,2]
[329727045,1718620251430,-154.16912763,0.00026585,2]
[329727046,1718620251445,-861.44159329,0.00026589,2]
[329727048,1718620251458,-193.308666,0.00026631,2]
[329727050,1718620251469,-159.701651,0.00026631,2]
[329727053,1718620251493,-430.28003105,0.0002667,2]
[329727054,1718620251516,-585.63532094,0.00026728,4]
[329727057,1718620251542,-154.27538672,0.00026738,2]
[329727060,1718620251581,-1222.56,0.0002674,2]
[329727061,1718620251593,-155.0,0.00026752,2]
[329727063,1718620251609,-931.60424191,0.00026752,2]
[329727065,1718620251623,-166.66289212,0.00026774,2]
[329727067,1718620251635,-151.01340937,0.00026777,2]
[329727069,1718620251648,-183.36287597,0.000268,2]
[329727070,1718620251662,-217.3420283,0.000268,2]
[329727072,1718620251691,-11743.2504,0.000268,2]
[329727074,1718620251703,-247.40157606,0.0002682,2]
[329727076,1718620251718,-152.82567657,0.00026878,2]
[329727078,1718620251733,-10000.0,0.000269,2]
[329727081,1718620251764,-211.8466,0.000269,2]
[329727084,1718620251782,-1000.0,0.000269,2]
[329727086,1718620251795,-8435.4094,0.000269,2]
[329727088,1718620251807,-214.04809464,0.000269,2]
[329727090,1718620251826,-486.3734,0.000269,2]
[329727092,1718620251847,-159.93934288,0.00026907,2]
[329727094,1718620251863,-500.0,0.00026932,2]
[329727095,1718620251875,-500.0,0.00026933,2]
[329727097,1718620251886,-200.0,0.00026933,2]
[329727099,1718620251903,-158.42682675,0.00026939,2]
[329727100,1718620251925,-193.308666,0.0002696,2]
[329727102,1718620251944,-159.701651,0.0002696,2]
[329727103,1718620251970,-347.48,0.0002699,3]
[329727105,1718620251986,-75013.03030415,0.00027,2]
[329727113,1718620252163,-371.01830304,0.00027,2]
[329727115,1718620252179,-1235.9041344,0.00027,2]
[329727116,1718620252193,-65761.15095847,0.00027,2]
[329727118,1718620252206,-286.46786332,0.00027,2]
[329727135,1718620252519,-714.0215388,0.00027,2]
[329727934,1718620482572,766.15,0.00021589,30]
[329727938,1718620909526,150.0,8.804e-05,2]
[329727939,1718620909588,150.0,8.804e-05,2]
[329727940,1718620909639,86.71,8.804e-05,2]
[329727942,1718621044250,702.3,0.00021589,30]
[329727943,1718621134743,150.0,9.485e-05,2]
[329727944,1718621134793,150.0,9.485e-05,2]
[329727945,1718621193690,444.61590764,9.485e-05,2]
[329727946,1718621194009,3115.67544076,9.485e-05,2]
[329727947,1718621216200,150.0,9.475e-05,2]
[329727952,1718621380683,-150.0,9.501e-05,2]
[329727953,1718621380956,-150.0,9.501e-05,2]
[329727954,1718621381022,-150.0,9.501e-05,2]
[329727955,1718621381322,-150.0,9.501e-05,2]
[329727956,1718621381711,-150.0,9.501e-05,2]
[329727957,1718621381788,-150.0,9.501e-05,2]
[329727958,1718621381848,-150.0,9.501e-05,2]
[329727959,1718621382107,-150.0,9.501e-05,2]
[329727960,1718621382150,-150.0,9.501e-05,2]
[329727961,1718621382306,-150.0,9.501e-05,2]
[329727962,1718621382663,-150.0,9.501e-05,2]